[Event "Titled Tuesday Blitz March 29 Early 2022"]
[White "Brodowski, Piotr"]
[Black "Isanzhulov, Arystan"]
[WhiteFideId "1124480"]
[BlackFideId "13711644"]
[WhiteElo "2567"]
[BlackElo "2792"]
[Result "0-1"]
[Round "11"]
[TimeControl "180+1"]
[Date "2022.03.30"]
[WhiteClock "0:00:18"]
[BlackClock "0:00:04"]

1. c4 {[%clk 0:02:56]}  e6 {[%clk 0:02:58]} 2. Nf3 {[%clk 0:02:50]}  c6 {[%clk 0:02:57]} 3. b3 {[%clk 0:02:49]}  a6 {[%clk 0:02:57]} 4. Bb2 {[%clk 0:02:49]}  b5 {[%clk 0:02:56]} 5. e3 {[%clk 0:02:45]}  Nf6 {[%clk 0:02:55]} 6. Qc2 {[%clk 0:02:45]}  Be7 {[%clk 0:02:53]} 7. Be2 {[%clk 0:02:41]}  d5 {[%clk 0:02:49]} 8. d3 {[%clk 0:02:42]}  Bd7 {[%clk 0:02:45]} 9. Nbd2 {[%clk 0:02:41]}  a5 {[%clk 0:02:45]} 10. Ne5 {[%clk 0:02:36]}  a4 {[%clk 0:02:44]} 11. bxa4 {[%clk 0:02:27]}  bxa4 {[%clk 0:02:43]} 12. O-O {[%clk 0:02:27]}  O-O {[%clk 0:02:41]} 13. Ndf3 {[%clk 0:02:27]}  Be8 {[%clk 0:02:40]} 14. Rab1 {[%clk 0:02:26]}  Na6 {[%clk 0:02:38]} 15. Bc3 {[%clk 0:02:20]}  Nc5 {[%clk 0:02:28]} 16. Nd4 {[%clk 0:02:18]}  Qc7 {[%clk 0:02:27]} 17. f4 {[%clk 0:02:12]}  dxc4 {[%clk 0:02:21]} 18. Nxc4 {[%clk 0:02:11]}  Nd5 {[%clk 0:02:20]} 19. Ba1 {[%clk 0:01:52]}  Na6 {[%clk 0:02:12]} 20. a3 {[%clk 0:01:51]}  Qa7 {[%clk 0:02:04]} 21. Kh1 {[%clk 0:01:34]}  Nac7 {[%clk 0:02:02]} 22. e4 {[%clk 0:01:28]}  Nf6 {[%clk 0:01:48]} 23. Ne5 {[%clk 0:01:22]}  Bxa3 {[%clk 0:01:40]} 24. Ndxc6 {[%clk 0:01:22]}  Qc5 {[%clk 0:01:38]} 25. Qxc5 {[%clk 0:01:15]}  Bxc5 {[%clk 0:01:38]} 26. d4 {[%clk 0:01:10]}  Bd6 {[%clk 0:01:29]} 27. Bf3 {[%clk 0:01:08]}  a3 {[%clk 0:01:28]} 28. Rbc1 {[%clk 0:00:55]}  a2 {[%clk 0:01:24]} 29. Nd3 {[%clk 0:00:48]}  Ba3 {[%clk 0:01:19]} 30. Rc2 {[%clk 0:00:47]}  Ra6 {[%clk 0:01:10]} 31. Ncb4 {[%clk 0:00:47]}  Bb5 {[%clk 0:01:05]} 32. Rxc7 {[%clk 0:00:39]}  Bxb4 {[%clk 0:01:02]} 33. Nxb4 {[%clk 0:00:39]}  Bxf1 {[%clk 0:01:02]} 34. Nxa6 {[%clk 0:00:36]}  Bxa6 {[%clk 0:01:03]} 35. Ra7 {[%clk 0:00:25]}  Rb8 {[%clk 0:00:57]} 36. h3 {[%clk 0:00:25]}  Bc4 {[%clk 0:00:51]} 37. d5 {[%clk 0:00:23]}  h6 {[%clk 0:00:41]} 38. Kh2 {[%clk 0:00:15]}  exd5 {[%clk 0:00:41]} 39. exd5 {[%clk 0:00:11]}  Nxd5 {[%clk 0:00:37]} 40. Be5 {[%clk 0:00:11]}  Rc8 {[%clk 0:00:31]} 41. Ra4 {[%clk 0:00:09]}  Nb6 {[%clk 0:00:23]} 42. Rb4 {[%clk 0:00:07]}  Nd7 {[%clk 0:00:22]} 43. Ba1 {[%clk 0:00:05]}  Be6 {[%clk 0:00:20]} 44. Ra4 {[%clk 0:00:05]}  g6 {[%clk 0:00:19]} 45. h4 {[%clk 0:00:04]}  h5 {[%clk 0:00:19]} 46. Kg3 {[%clk 0:00:04]}  Nc5 {[%clk 0:00:19]} 47. Ra5 {[%clk 0:00:04]}  Kh7 {[%clk 0:00:16]} 48. Bf6 {[%clk 0:00:04]}  Bf5 {[%clk 0:00:13]} 49. Ra7 {[%clk 0:00:03]}  Nd7 {[%clk 0:00:11]} 50. Bd4 {[%clk 0:00:02]}  Be6 {[%clk 0:00:12]} 51. Be4 {[%clk 0:00:02]}  Rc4 {[%clk 0:00:10]} 52. Ba1 {[%clk 0:00:02]}  Rxe4 {[%clk 0:00:10]} 53. Ra8 {[%clk 0:00:03]}  g5 {[%clk 0:00:08]} 54. hxg5 {[%clk 0:00:02]}  h4+ {[%clk 0:00:07]} 55. Kxh4 {[%clk 0:00:02]}  Rxf4+ {[%clk 0:00:07]} 56. Kh5 {[%clk 0:00:02]}  Bg4+ {[%clk 0:00:07]} 57. Kh4 {[%clk 0:00:03]}  Bf3+ {[%clk 0:00:08]} 58. Kg3 {[%clk 0:00:03]}  Bxa8 {[%clk 0:00:09]} 59. Kxf4 {[%clk 0:00:03]}  Kg6 {[%clk 0:00:10]} 60. g3 {[%clk 0:00:03]}  Bd5 {[%clk 0:00:09]} 61. Bb2 {[%clk 0:00:03]}  Be6 {[%clk 0:00:10]} 62. g4 {[%clk 0:00:03]}  Nc5 {[%clk 0:00:10]} 63. Ba1 {[%clk 0:00:04]}  Nb3 {[%clk 0:00:10]} 64. Bb2 {[%clk 0:00:04]}  a1=Q {[%clk 0:00:11]} 65. Bxa1 {[%clk 0:00:05]}  Nxa1 {[%clk 0:00:12]} 66. Kg3 {[%clk 0:00:06]}  Nb3 {[%clk 0:00:12]} 67. Kf4 {[%clk 0:00:06]}  Nc5 {[%clk 0:00:13]} 68. Ke5 {[%clk 0:00:07]}  Kxg5 {[%clk 0:00:13]} 69. Kd6 {[%clk 0:00:07]}  Nd7 {[%clk 0:00:14]} 70. Ke7 {[%clk 0:00:07]}  Nf6 {[%clk 0:00:15]} 71. Kf8 {[%clk 0:00:07]}  Nxg4 {[%clk 0:00:16]} 72. Kg7 {[%clk 0:00:08]}  Nh6 {[%clk 0:00:16]} 73. Kh7 {[%clk 0:00:08]}  Bg4 {[%clk 0:00:17]} 74. Kg7 {[%clk 0:00:09]}  Bh5 {[%clk 0:00:18]} 75. Kh7 {[%clk 0:00:09]}  f5 {[%clk 0:00:19]} 76. Kg7 {[%clk 0:00:10]}  f4 {[%clk 0:00:20]} 77. Kh7 {[%clk 0:00:11]}  f3 {[%clk 0:00:21]} 78. Kg7 {[%clk 0:00:12]}  f2 {[%clk 0:00:22]} 79. Kh7 {[%clk 0:00:13]}  Ng4 {[%clk 0:00:23]} 80. Kg7 {[%clk 0:00:13]}  f1=Q {[%clk 0:00:24]} 81. Kh7 {[%clk 0:00:14]}  Qf7+ {[%clk 0:00:23]} 82. Kh8 {[%clk 0:00:14]}  Qe7 {[%clk 0:00:24]} 83. Kg8 {[%clk 0:00:14]}  Nf2 {[%clk 0:00:24]} 84. Kh8 {[%clk 0:00:15]}  Ne4 {[%clk 0:00:24]} 85. Kg8 {[%clk 0:00:16]}  Nd2 {[%clk 0:00:25]} 86. Kh8 {[%clk 0:00:16]}  Nb3 {[%clk 0:00:26]} 87. Kg8 {[%clk 0:00:17]}  Na1 {[%clk 0:00:26]} 88. Kh8 {[%clk 0:00:17]}  Bf3 {[%clk 0:00:26]} 89. Kg8 {[%clk 0:00:17]}  Bh1 {[%clk 0:00:27]} 90. Kh8 {[%clk 0:00:17]}  Kg6 {[%clk 0:00:28]} 91. Kg8 {[%clk 0:00:18]}  Qd8# {[%clk 0:00:04]} 0-1


[Site "https://www.chess.com"]

[Event "Titled Tuesday Blitz March 29 Early 2022"]
[White "Buscar, Michael"]
[Black "Derjabin, Ilja"]
[WhiteFideId "2603616"]
[BlackFideId "14104768"]
[WhiteElo "2411"]
[BlackElo "2553"]
[Result "1-0"]
[Round "11"]
[TimeControl "180+1"]
[Date "2022.03.30"]
[WhiteClock "0:00:30"]
[BlackClock "0:00:35"]

1. Nf3 {[%clk 0:03:00]}  c5 {[%clk 0:02:55]} 2. g3 {[%clk 0:02:59]}  Nc6 {[%clk 0:02:54]} 3. Bg2 {[%clk 0:03:00]}  d5 {[%clk 0:02:55]} 4. d4 {[%clk 0:02:58]}  Nf6 {[%clk 0:02:53]} 5. O-O {[%clk 0:02:50]}  c4 {[%clk 0:02:52]} 6. b3 {[%clk 0:02:46]}  cxb3 {[%clk 0:02:51]} 7. axb3 {[%clk 0:02:46]}  e6 {[%clk 0:02:52]} 8. c4 {[%clk 0:02:43]}  Be7 {[%clk 0:02:51]} 9. Ba3 {[%clk 0:02:43]}  O-O {[%clk 0:02:49]} 10. Qd2 {[%clk 0:02:36]}  Bxa3 {[%clk 0:02:44]} 11. Nxa3 {[%clk 0:02:33]}  Qe7 {[%clk 0:02:43]} 12. Rfd1 {[%clk 0:02:28]}  Rd8 {[%clk 0:02:42]} 13. e3 {[%clk 0:02:28]}  Ne4 {[%clk 0:02:37]} 14. Qb2 {[%clk 0:02:25]}  a6 {[%clk 0:02:35]} 15. Nd2 {[%clk 0:02:11]}  Nf6 {[%clk 0:02:31]} 16. Nf3 {[%clk 0:02:09]}  Bd7 {[%clk 0:02:25]} 17. Nc2 {[%clk 0:01:54]}  dxc4 {[%clk 0:02:16]} 18. bxc4 {[%clk 0:01:54]}  Rab8 {[%clk 0:02:16]} 19. Nce1 {[%clk 0:01:53]}  b5 {[%clk 0:02:13]} 20. c5 {[%clk 0:01:47]}  a5 {[%clk 0:02:11]} 21. Nd3 {[%clk 0:01:45]}  b4 {[%clk 0:02:06]} 22. Nfe5 {[%clk 0:01:45]}  Nd5 {[%clk 0:01:59]} 23. Nxc6 {[%clk 0:01:42]}  Bxc6 {[%clk 0:01:57]} 24. Rxa5 {[%clk 0:01:43]}  Nc3 {[%clk 0:01:26]} 25. Rda1 {[%clk 0:01:34]}  Bxg2 {[%clk 0:01:25]} 26. Kxg2 {[%clk 0:01:35]}  h5 {[%clk 0:01:21]} 27. Ra7 {[%clk 0:01:26]}  Qg5 {[%clk 0:01:16]} 28. Ne5 {[%clk 0:01:27]}  h4 {[%clk 0:01:10]} 29. Rxf7 {[%clk 0:01:09]}  Rd5 {[%clk 0:01:01]} 30. Raa7 {[%clk 0:01:07]}  Rxe5 {[%clk 0:00:59]} 31. dxe5 {[%clk 0:01:06]}  h3+ {[%clk 0:00:42]} 32. Kxh3 {[%clk 0:00:48]}  Qxe5 {[%clk 0:00:41]} 33. Rxg7+ {[%clk 0:00:44]}  Kh8 {[%clk 0:00:40]} 34. Rh7+ {[%clk 0:00:34]}  Kg8 {[%clk 0:00:35]} 35. Qc2 {[%clk 0:00:30]} 1-0


[Site "https://www.chess.com"]

[Event "Titled Tuesday Blitz March 29 Early 2022"]
[White "Caruana, Fabiano"]
[Black "Xu, Yi"]
[WhiteFideId "2020009"]
[BlackFideId "8605564"]
[WhiteElo "2744"]
[BlackElo "2471"]
[Result "1-0"]
[Round "11"]
[TimeControl "180+1"]
[Date "2022.03.29"]
[WhiteClock "0:00:07"]
[BlackClock "0:00:01"]

1. e4 {[%clk 0:03:00]}  c5 {[%clk 0:03:00]} 2. b3 {[%clk 0:02:59]}  g6 {[%clk 0:02:56]} 3. Bb2 {[%clk 0:02:57]}  Nf6 {[%clk 0:02:57]} 4. e5 {[%clk 0:02:57]}  Nd5 {[%clk 0:02:57]} 5. Bc4 {[%clk 0:02:57]}  Nb6 {[%clk 0:02:36]} 6. d3 {[%clk 0:02:53]}  Bg7 {[%clk 0:02:31]} 7. Nd2 {[%clk 0:02:52]}  O-O {[%clk 0:02:30]} 8. a4 {[%clk 0:02:24]}  d5 {[%clk 0:02:30]} 9. a5 {[%clk 0:02:20]}  Nxc4 {[%clk 0:02:04]} 10. bxc4 {[%clk 0:02:08]}  d4 {[%clk 0:02:03]} 11. f4 {[%clk 0:02:03]}  Nc6 {[%clk 0:02:03]} 12. Nb3 {[%clk 0:01:54]}  f6 {[%clk 0:01:56]} 13. exf6 {[%clk 0:01:48]}  exf6 {[%clk 0:01:55]} 14. Nf3 {[%clk 0:01:41]}  Bg4 {[%clk 0:01:54]} 15. O-O {[%clk 0:01:40]}  b6 {[%clk 0:01:54]} 16. h3 {[%clk 0:01:39]}  Be6 {[%clk 0:01:45]} 17. Bc1 {[%clk 0:01:11]}  Qd7 {[%clk 0:01:39]} 18. Bd2 {[%clk 0:01:09]}  Rae8 {[%clk 0:01:29]} 19. Re1 {[%clk 0:00:58]}  Bf7 {[%clk 0:01:09]} 20. Rxe8 {[%clk 0:00:54]}  Rxe8 {[%clk 0:01:09]} 21. Qf1 {[%clk 0:00:53]}  Bf8 {[%clk 0:00:54]} 22. Nh2 {[%clk 0:00:43]}  f5 {[%clk 0:00:43]} 23. Nf3 {[%clk 0:00:42]}  h6 {[%clk 0:00:44]} 24. Qf2 {[%clk 0:00:41]}  Bg7 {[%clk 0:00:43]} 25. axb6 {[%clk 0:00:33]}  axb6 {[%clk 0:00:42]} 26. Nc1 {[%clk 0:00:32]}  Bf6 {[%clk 0:00:39]} 27. Ne2 {[%clk 0:00:32]}  Kg7 {[%clk 0:00:39]} 28. Ng3 {[%clk 0:00:31]}  Nb4 {[%clk 0:00:23]} 29. Bxb4 {[%clk 0:00:25]}  cxb4 {[%clk 0:00:23]} 30. Re1 {[%clk 0:00:24]}  Ra8 {[%clk 0:00:18]} 31. Ne5 {[%clk 0:00:23]}  Bxe5 {[%clk 0:00:18]} 32. fxe5 {[%clk 0:00:23]}  Ra2 {[%clk 0:00:17]} 33. Re2 {[%clk 0:00:19]}  Be6 {[%clk 0:00:16]} 34. h4 {[%clk 0:00:18]}  h5 {[%clk 0:00:16]} 35. Qf4 {[%clk 0:00:17]}  Qd8 {[%clk 0:00:13]} 36. Kh2 {[%clk 0:00:15]}  Ra1 {[%clk 0:00:12]} 37. Rf2 {[%clk 0:00:14]}  Re1 {[%clk 0:00:12]} 38. Ne2 {[%clk 0:00:14]}  Rb1 {[%clk 0:00:11]} 39. Nxd4 {[%clk 0:00:14]}  Bf7 {[%clk 0:00:09]} 40. Nf3 {[%clk 0:00:13]}  b3 {[%clk 0:00:08]} 41. cxb3 {[%clk 0:00:13]}  Qxd3 {[%clk 0:00:09]} 42. Rd2 {[%clk 0:00:10]}  Qf1 {[%clk 0:00:08]} 43. e6 {[%clk 0:00:07]}  Qh1+ {[%clk 0:00:05]} 44. Kg3 {[%clk 0:00:08]}  Bxe6 {[%clk 0:00:03]} 45. Qe5+ {[%clk 0:00:08]}  Kh7 {[%clk 0:00:03]} 46. Rd8 {[%clk 0:00:08]}  f4+ {[%clk 0:00:02]} 47. Qxf4 {[%clk 0:00:08]}  Rb2 {[%clk 0:00:02]} 48. Ng5+ {[%clk 0:00:07]}  Kh6 {[%clk 0:00:01]} 49. Qf8# {[%clk 0:00:07]} 1-0


[Site "https://www.chess.com"]

[Event "Titled Tuesday Blitz March 29 Early 2022"]
[White "De Souza, Cristiano Gomes"]
[Black "Terletsky, Oleg"]
[WhiteFideId "2151758"]
[BlackFideId "14116774"]
[WhiteElo "2068"]
[BlackElo "2064"]
[Result "1-0"]
[Round "11"]
[TimeControl "180+1"]
[Date "2022.03.30"]
[WhiteClock "0:01:28"]
[BlackClock "0:01:01"]

1. d4 {[%clk 0:03:00]}  Nf6 {[%clk 0:02:58]} 2. c4 {[%clk 0:02:59]}  g6 {[%clk 0:02:58]} 3. Nc3 {[%clk 0:02:59]}  Bg7 {[%clk 0:02:59]} 4. e4 {[%clk 0:02:58]}  d6 {[%clk 0:02:59]} 5. Nf3 {[%clk 0:02:59]}  O-O {[%clk 0:03:00]} 6. Be2 {[%clk 0:02:58]}  e5 {[%clk 0:03:01]} 7. O-O {[%clk 0:02:59]}  Nc6 {[%clk 0:03:01]} 8. d5 {[%clk 0:02:59]}  Ne7 {[%clk 0:03:01]} 9. Ne1 {[%clk 0:03:00]}  Nd7 {[%clk 0:03:00]} 10. Be3 {[%clk 0:03:01]}  f5 {[%clk 0:03:01]} 11. f3 {[%clk 0:03:00]}  f4 {[%clk 0:03:02]} 12. Bf2 {[%clk 0:03:00]}  g5 {[%clk 0:03:02]} 13. Nb5 {[%clk 0:03:01]}  Nf6 {[%clk 0:02:56]} 14. Nxa7 {[%clk 0:02:58]}  Bd7 {[%clk 0:02:56]} 15. Nd3 {[%clk 0:02:51]}  g4 {[%clk 0:02:52]} 16. Nb5 {[%clk 0:02:48]}  Ng6 {[%clk 0:02:47]} 17. a4 {[%clk 0:02:42]}  g3 {[%clk 0:02:46]} 18. hxg3 {[%clk 0:02:42]}  fxg3 {[%clk 0:02:47]} 19. Bxg3 {[%clk 0:02:42]}  Nh5 {[%clk 0:02:46]} 20. Bf2 {[%clk 0:02:42]}  Bh6 {[%clk 0:02:39]} 21. c5 {[%clk 0:02:39]}  Nhf4 {[%clk 0:02:15]} 22. cxd6 {[%clk 0:02:33]}  cxd6 {[%clk 0:02:14]} 23. Nxd6 {[%clk 0:02:29]}  Qg5 {[%clk 0:02:13]} 24. g3 {[%clk 0:02:27]}  Nh3+ {[%clk 0:01:24]} 25. Kg2 {[%clk 0:02:23]}  Nxf2 {[%clk 0:01:22]} 26. Kxf2 {[%clk 0:02:12]}  Bh3 {[%clk 0:01:17]} 27. Qc1 {[%clk 0:02:02]}  Qh5 {[%clk 0:01:07]} 28. Qc7 {[%clk 0:01:36]}  Rf7 {[%clk 0:01:07]} 29. Qxf7+ {[%clk 0:01:33]}  Kh8 {[%clk 0:01:03]} 30. Qf6+ {[%clk 0:01:32]}  Bg7 {[%clk 0:01:02]} 31. Nf7+ {[%clk 0:01:30]}  Kg8 {[%clk 0:01:01]} 32. Qg5 {[%clk 0:01:28]} 1-0


[Site "https://www.chess.com"]

[Event "Titled Tuesday Blitz March 29 Early 2022"]
[White "Derraugh, Geordie"]
[Black "Nozdrachev, Leonid"]
[WhiteFideId "2603950"]
[BlackFideId "24113433"]
[WhiteElo "2450"]
[BlackElo "2542"]
[Result "1-0"]
[Round "11"]
[TimeControl "180+1"]
[Date "2022.03.30"]
[WhiteClock "0:00:05"]
[BlackClock "0:00:04"]

1. e4 {[%clk 0:03:00]}  d6 {[%clk 0:02:58]} 2. d4 {[%clk 0:03:00]}  Nf6 {[%clk 0:02:58]} 3. Nc3 {[%clk 0:02:59]}  e5 {[%clk 0:02:58]} 4. Nf3 {[%clk 0:02:58]}  Nbd7 {[%clk 0:02:57]} 5. Bc4 {[%clk 0:02:57]}  Be7 {[%clk 0:02:57]} 6. a4 {[%clk 0:02:57]}  O-O {[%clk 0:02:57]} 7. O-O {[%clk 0:02:56]}  c6 {[%clk 0:02:57]} 8. a5 {[%clk 0:02:56]}  Qc7 {[%clk 0:02:56]} 9. h3 {[%clk 0:02:56]}  Re8 {[%clk 0:02:56]} 10. Qd3 {[%clk 0:02:44]}  Nf8 {[%clk 0:02:52]} 11. dxe5 {[%clk 0:02:23]}  dxe5 {[%clk 0:02:53]} 12. Bxf7+ {[%clk 0:02:17]}  Kxf7 {[%clk 0:02:51]} 13. Ng5+ {[%clk 0:02:17]}  Kg6 {[%clk 0:02:41]} 14. f4 {[%clk 0:02:13]}  Bc5+ {[%clk 0:02:22]} 15. Kh1 {[%clk 0:02:08]}  exf4 {[%clk 0:02:16]} 16. Bxf4 {[%clk 0:02:07]}  Qd8 {[%clk 0:02:10]} 17. Qc4 {[%clk 0:01:59]}  Qe7 {[%clk 0:02:01]} 18. e5 {[%clk 0:01:39]}  Nh5 {[%clk 0:02:00]} 19. h4 {[%clk 0:01:02]}  Bf5 {[%clk 0:01:42]} 20. Na4 {[%clk 0:00:55]}  b6 {[%clk 0:01:38]} 21. Nxc5 {[%clk 0:00:51]}  bxc5 {[%clk 0:01:37]} 22. Bh2 {[%clk 0:00:51]}  h6 {[%clk 0:01:21]} 23. Rxf5 {[%clk 0:00:48]}  hxg5 {[%clk 0:01:17]} 24. Rxg5+ {[%clk 0:00:40]}  Kh6 {[%clk 0:01:16]} 25. Qg4 {[%clk 0:00:41]}  g6 {[%clk 0:01:15]} 26. Rf1 {[%clk 0:00:37]}  Qe6 {[%clk 0:01:11]} 27. Rxh5+ {[%clk 0:00:24]}  gxh5 {[%clk 0:01:08]} 28. Qg5+ {[%clk 0:00:13]}  Kh7 {[%clk 0:01:08]} 29. Rf6 {[%clk 0:00:14]}  Rad8 {[%clk 0:00:57]} 30. Qxh5+ {[%clk 0:00:09]}  Kg8 {[%clk 0:00:56]} 31. Qg5+ {[%clk 0:00:08]}  Kh8 {[%clk 0:00:54]} 32. Qh6+ {[%clk 0:00:06]}  Kg8 {[%clk 0:00:50]} 33. Rxe6 {[%clk 0:00:05]}  Rd1+ {[%clk 0:00:43]} 34. Bg1 {[%clk 0:00:05]}  Rxe6 {[%clk 0:00:44]} 35. Qg5+ {[%clk 0:00:05]}  Rg6 {[%clk 0:00:42]} 36. Qf5 {[%clk 0:00:05]}  Rd2 {[%clk 0:00:38]} 37. Qf3 {[%clk 0:00:04]}  c4 {[%clk 0:00:36]} 38. h5 {[%clk 0:00:04]}  Rg5 {[%clk 0:00:32]} 39. Be3 {[%clk 0:00:04]}  Rgxg2 {[%clk 0:00:27]} 40. Qxg2+ {[%clk 0:00:04]}  Rxg2 {[%clk 0:00:26]} 41. Kxg2 {[%clk 0:00:05]}  Nd7 {[%clk 0:00:15]} 42. e6 {[%clk 0:00:05]}  Nf6 {[%clk 0:00:13]} 43. h6 {[%clk 0:00:06]}  Nd5 {[%clk 0:00:11]} 44. Bxa7 {[%clk 0:00:05]}  Nf4+ {[%clk 0:00:09]} 45. Kf3 {[%clk 0:00:05]}  Nxe6 {[%clk 0:00:10]} 46. Be3 {[%clk 0:00:05]}  Nc7 {[%clk 0:00:08]} 47. Ke4 {[%clk 0:00:05]}  Nb5 {[%clk 0:00:07]} 48. Bc5 {[%clk 0:00:04]}  Kh7 {[%clk 0:00:04]} 49. a6 {[%clk 0:00:05]} 1-0


[Site "https://www.chess.com"]

[Event "Titled Tuesday Blitz March 29 Early 2022"]
[White "Einarsson, Halldor Gretar"]
[Black "Silva, Mariana Sofia T."]
[WhiteFideId "2300150"]
[BlackFideId "1911899"]
[WhiteElo "2114"]
[BlackElo "1825"]
[Result "0-1"]
[Round "11"]
[TimeControl "180+1"]
[Date "2022.03.30"]
[WhiteClock "0:00:17"]
[BlackClock "0:00:15"]

1. d4 {[%clk 0:03:00]}  Nf6 {[%clk 0:02:58]} 2. c4 {[%clk 0:02:59]}  e6 {[%clk 0:02:58]} 3. g3 {[%clk 0:02:58]}  Bb4+ {[%clk 0:02:52]} 4. Bd2 {[%clk 0:02:56]}  Qe7 {[%clk 0:02:45]} 5. Bg2 {[%clk 0:02:54]}  O-O {[%clk 0:02:44]} 6. e4 {[%clk 0:02:53]}  Bxd2+ {[%clk 0:02:41]} 7. Nxd2 {[%clk 0:02:52]}  d6 {[%clk 0:02:40]} 8. f4 {[%clk 0:02:40]}  e5 {[%clk 0:02:33]} 9. fxe5 {[%clk 0:02:39]}  dxe5 {[%clk 0:02:33]} 10. dxe5 {[%clk 0:02:38]}  Qxe5 {[%clk 0:02:32]} 11. Ngf3 {[%clk 0:02:38]}  Qxb2 {[%clk 0:02:22]} 12. O-O {[%clk 0:02:34]}  Nc6 {[%clk 0:02:15]} 13. Qb3 {[%clk 0:01:50]}  Qxb3 {[%clk 0:02:10]} 14. axb3 {[%clk 0:01:50]}  a5 {[%clk 0:01:59]} 15. Rfe1 {[%clk 0:01:32]}  Nb4 {[%clk 0:01:42]} 16. e5 {[%clk 0:01:24]}  Nd7 {[%clk 0:01:39]} 17. Re2 {[%clk 0:01:22]}  Nc5 {[%clk 0:01:36]} 18. Nd4 {[%clk 0:01:17]}  Bg4 {[%clk 0:01:30]} 19. Rf2 {[%clk 0:01:15]}  Rad8 {[%clk 0:01:26]} 20. Rf4 {[%clk 0:01:13]}  Be6 {[%clk 0:01:21]} 21. Rxa5 {[%clk 0:01:12]}  b6 {[%clk 0:01:19]} 22. Rb5 {[%clk 0:01:08]}  Nbd3 {[%clk 0:01:18]} 23. Rh4 {[%clk 0:01:05]}  h6 {[%clk 0:00:50]} 24. Nc6 {[%clk 0:00:58]}  Rd7 {[%clk 0:00:42]} 25. Rd4 {[%clk 0:00:57]}  Rxd4 {[%clk 0:00:40]} 26. Nxd4 {[%clk 0:00:57]}  Rd8 {[%clk 0:00:40]} 27. Nc6 {[%clk 0:00:56]}  Rd7 {[%clk 0:00:40]} 28. Ne4 {[%clk 0:00:52]}  Nxe4 {[%clk 0:00:36]} 29. Bxe4 {[%clk 0:00:51]}  Nc5 {[%clk 0:00:36]} 30. b4 {[%clk 0:00:44]}  Nxe4 {[%clk 0:00:35]} 31. c5 {[%clk 0:00:41]}  Bc4 {[%clk 0:00:28]} 32. cxb6 {[%clk 0:00:41]}  cxb6 {[%clk 0:00:19]} 33. Rxb6 {[%clk 0:00:41]}  Rd1+ {[%clk 0:00:18]} 34. Kg2 {[%clk 0:00:40]}  Rb1 {[%clk 0:00:18]} 35. Na5 {[%clk 0:00:38]}  Bd5 {[%clk 0:00:17]} 36. b5 {[%clk 0:00:38]}  Nd6+ {[%clk 0:00:15]} 37. Kh3 {[%clk 0:00:33]}  Nxb5 {[%clk 0:00:15]} 38. Rb8+ {[%clk 0:00:27]}  Kh7 {[%clk 0:00:14]} 39. Kg4 {[%clk 0:00:26]}  Nc3 {[%clk 0:00:14]} 40. Rxb1 {[%clk 0:00:23]}  Nxb1 {[%clk 0:00:15]} 41. Kf4 {[%clk 0:00:21]}  Be6 {[%clk 0:00:15]} 42. Nc6 {[%clk 0:00:20]}  Nc3 {[%clk 0:00:15]} 43. Nd4 {[%clk 0:00:19]}  Nd5+ {[%clk 0:00:15]} 44. Ke4 {[%clk 0:00:19]}  Nc7 {[%clk 0:00:15]} 45. Kf4 {[%clk 0:00:19]}  Kg6 {[%clk 0:00:14]} 46. h4 {[%clk 0:00:18]}  h5 {[%clk 0:00:14]} 47. Nf3 {[%clk 0:00:18]}  Bd5 {[%clk 0:00:13]} 48. Nd4 {[%clk 0:00:17]}  Ne6+ {[%clk 0:00:13]} 49. Ke3 {[%clk 0:00:17]}  Nxd4 {[%clk 0:00:12]} 50. Kxd4 {[%clk 0:00:17]}  Be6 {[%clk 0:00:13]} 51. Kc5 {[%clk 0:00:17]}  Kf5 {[%clk 0:00:13]} 52. Kd6 {[%clk 0:00:17]}  Kg4 {[%clk 0:00:14]} 53. Ke7 {[%clk 0:00:16]}  Kxg3 {[%clk 0:00:14]} 54. Kf8 {[%clk 0:00:16]}  g6 {[%clk 0:00:14]} 55. Kg7 {[%clk 0:00:16]}  Kxh4 {[%clk 0:00:15]} 56. Kh6 {[%clk 0:00:17]}  Kg3 {[%clk 0:00:15]} 0-1


[Site "https://www.chess.com"]

[Event "Titled Tuesday Blitz March 29 Early 2022"]
[White "Ferreira, Vitor Hugo Vieira"]
[Black "Perez Gormaz, Matias"]
[WhiteFideId "2119765"]
[BlackFideId "3406342"]
[WhiteElo "2489"]
[BlackElo "2621"]
[Result "0-1"]
[Round "11"]
[TimeControl "180+1"]
[Date "2022.03.30"]
[WhiteClock "0:00:14"]
[BlackClock "0:01:37"]

1. e4 {[%clk 0:02:56]}  h5 {[%clk 0:03:00]} 2. d4 {[%clk 0:02:55]}  h4 {[%clk 0:03:01]} 3. h3 {[%clk 0:02:54]}  b6 {[%clk 0:03:01]} 4. Nc3 {[%clk 0:02:54]}  Bb7 {[%clk 0:03:02]} 5. Bc4 {[%clk 0:02:53]}  e6 {[%clk 0:03:02]} 6. a3 {[%clk 0:02:52]}  Nf6 {[%clk 0:03:02]} 7. e5 {[%clk 0:02:51]}  Bxg2 {[%clk 0:02:48]} 8. Rh2 {[%clk 0:02:51]}  Bd5 {[%clk 0:02:47]} 9. exf6 {[%clk 0:02:36]}  Bxc4 {[%clk 0:02:47]} 10. fxg7 {[%clk 0:02:36]}  Bxg7 {[%clk 0:02:48]} 11. Rg2 {[%clk 0:02:36]}  Qf6 {[%clk 0:02:40]} 12. Ne4 {[%clk 0:02:29]}  Qxd4 {[%clk 0:02:33]} 13. Qg4 {[%clk 0:02:29]}  Nc6 {[%clk 0:02:11]} 14. Nf3 {[%clk 0:02:20]}  Qd5 {[%clk 0:01:56]} 15. Bg5 {[%clk 0:01:25]}  f5 {[%clk 0:01:50]} 16. Nd6+ {[%clk 0:00:21]}  cxd6 {[%clk 0:01:48]} 17. Qf4 {[%clk 0:00:19]}  Qe4+ {[%clk 0:01:36]} 18. Qxe4 {[%clk 0:00:14]}  fxe4 {[%clk 0:01:37]} 0-1


[Site "https://www.chess.com"]

[Event "Titled Tuesday Blitz March 29 Early 2022"]
[White "Gabdrakhmanov, Azat"]
[Black "Oganian, Miran"]
[WhiteFideId "34189197"]
[BlackFideId "4122488"]
[WhiteElo "2279"]
[BlackElo "2357"]
[Result "0-1"]
[Round "11"]
[TimeControl "180+1"]
[Date "2022.03.29"]
[WhiteClock "0:00:13"]
[BlackClock "0:01:16"]

1. e4 {[%clk 0:03:00]}  e6 {[%clk 0:02:59]} 2. d3 {[%clk 0:02:56]}  d5 {[%clk 0:03:00]} 3. Nd2 {[%clk 0:02:57]}  Nf6 {[%clk 0:02:59]} 4. Ngf3 {[%clk 0:02:57]}  b6 {[%clk 0:03:00]} 5. g3 {[%clk 0:02:54]}  dxe4 {[%clk 0:02:56]} 6. dxe4 {[%clk 0:02:54]}  Bc5 {[%clk 0:02:57]} 7. Bg2 {[%clk 0:02:52]}  Ba6 {[%clk 0:02:57]} 8. c4 {[%clk 0:02:37]}  Qd3 {[%clk 0:02:56]} 9. Qe2 {[%clk 0:02:32]}  Qxe2+ {[%clk 0:02:56]} 10. Kxe2 {[%clk 0:02:33]}  Nc6 {[%clk 0:02:54]} 11. b3 {[%clk 0:02:24]}  O-O-O {[%clk 0:02:53]} 12. Bb2 {[%clk 0:02:23]}  Nb4 {[%clk 0:02:38]} 13. e5 {[%clk 0:02:03]}  Ng4 {[%clk 0:02:37]} 14. Ne4 {[%clk 0:02:01]}  Nd3 {[%clk 0:02:17]} 15. Nxc5 {[%clk 0:01:44]}  bxc5 {[%clk 0:02:15]} 16. Bc3 {[%clk 0:01:21]}  Ngxf2 {[%clk 0:02:13]} 17. Rhf1 {[%clk 0:01:19]}  Ne4 {[%clk 0:02:13]} 18. Ba5 {[%clk 0:01:18]}  Nb4 {[%clk 0:02:13]} 19. a3 {[%clk 0:00:51]}  Nc6 {[%clk 0:01:39]} 20. Be1 {[%clk 0:00:42]}  f5 {[%clk 0:01:39]} 21. exf6 {[%clk 0:00:39]}  gxf6 {[%clk 0:01:40]} 22. Ke3 {[%clk 0:00:30]}  f5 {[%clk 0:01:40]} 23. Rc1 {[%clk 0:00:24]}  Bb7 {[%clk 0:01:40]} 24. b4 {[%clk 0:00:21]}  Rd7 {[%clk 0:01:32]} 25. b5 {[%clk 0:00:19]}  Nd4 {[%clk 0:01:30]} 26. Ne5 {[%clk 0:00:19]}  Rg7 {[%clk 0:01:24]} 27. Bxe4 {[%clk 0:00:16]}  Bxe4 {[%clk 0:01:24]} 28. Nd3 {[%clk 0:00:17]}  Bxd3 {[%clk 0:01:21]} 29. Kxd3 {[%clk 0:00:17]}  e5 {[%clk 0:01:21]} 30. Ke3 {[%clk 0:00:17]}  h5 {[%clk 0:01:16]} 31. Bc3 {[%clk 0:00:14]}  h4 {[%clk 0:01:16]} 32. Rg1 {[%clk 0:00:13]}  hxg3 {[%clk 0:01:15]} 33. Rxg3 {[%clk 0:00:13]}  f4+ {[%clk 0:01:16]} 0-1


[Site "https://www.chess.com"]